fUSD/lending_fUSD_20260122
["ID","MTS","AMOUNT","RATE_DAILY","PERIOD"]
[403024224,1769080238153,-500.0,0.00017041,2]
[403024225,1769080238162,-500.0,0.00017041,2]
[403024226,1769080238172,-500.0,0.00017041,2]
[403024227,1769080238181,-500.0,0.00017041,2]
[403024228,1769080238191,-500.0,0.00017041,2]
[403024229,1769080238201,-500.0,0.00017041,2]
[403024230,1769080238211,-300.0,0.00017041,2]
[403024231,1769080238220,-500.0,0.00017041,2]
[403024232,1769080238230,-500.0,0.00017041,2]
[403024233,1769080238240,-500.0,0.00017041,2]
[403024234,1769080238249,-500.0,0.00017041,2]
[403024235,1769080238259,-500.0,0.00017041,2]
[403024236,1769080238269,-500.0,0.00017041,2]
[403024237,1769080238278,-500.0,0.00017041,2]
[403024239,1769080238287,-500.0,0.00017041,2]
[403024240,1769080238297,-500.0,0.00017041,2]
[403024241,1769080238306,-500.0,0.00017041,2]
[403024242,1769080238316,-500.0,0.00017041,2]
[403024243,1769080238325,-1110.78417922,0.00017041,5]
[403024244,1769080238335,-979.185,0.00017041,2]
[403024245,1769080238345,-500.0,0.00017041,2]
[403024246,1769080238355,-500.0,0.00017041,2]
[403024247,1769080238365,-500.0,0.00017041,2]
[403024248,1769080238375,-1193.85,0.00017041,2]
[403024249,1769080238384,-540.08705783,0.00017041,2]
[403024250,1769080238395,-217.98,0.00017041,2]
[403024251,1769080238404,-492.38905927,0.00017041,5]
[403024252,1769080238414,-516.50754003,0.00017041,2]
[403024253,1769080238427,-500.0,0.00017041,2]
[403024254,1769080238436,-500.0,0.00017041,2]
[403024255,1769080238446,-500.0,0.00017041,2]
[403024256,1769080238456,-368.70990999,0.00017041,2]
[403024257,1769080238466,-500.0,0.00017041,2]
[403024258,1769080238475,-500.0,0.00017041,2]
[403024259,1769080238485,-150.0,0.00017048,2]
[403024260,1769080238495,-150.0,0.00017102,2]
[403024261,1769080238505,-150.0,0.00017157,2]
[403024262,1769080238514,-1000.0,0.00017212,2]
[403024263,1769080238524,-166.0,0.00017212,2]
[403024264,1769080238533,-340.0,0.0001723,2]
[403024265,1769080238542,-500.0,0.00017311,2]
[403024266,1769080238552,-596.95186764,0.00017311,2]
[403024267,1769080238562,-500.0,0.00017311,2]
[403024268,1769080238571,-500.0,0.00017311,2]
[403024269,1769080238582,-342.1996177,0.00017311,2]
[403024270,1769080238591,-500.0,0.00017311,2]
[403024271,1769080238601,-500.0,0.00017311,2]
[403024272,1769080238611,-500.0,0.00017311,2]
[403024273,1769080238624,-500.0,0.00017311,2]
[403024274,1769080238634,-1193.85,0.00017315,2]
[403024275,1769080238644,-166.66,0.00017556,2]
[403024276,1769080238655,-1193.85,0.00017589,2]
[403024277,1769080238665,-500.0,0.00017673,2]
[403024278,1769080238675,-500.0,0.00017673,2]
[403024279,1769080238686,-500.0,0.00017673,2]
[403024280,1769080238697,-500.0,0.00017673,2]
[403024281,1769080238707,-500.0,0.00017673,2]
[403024282,1769080238718,-500.0,0.00017673,2]
[403024283,1769080238728,-500.0,0.00017673,2]
[403024284,1769080238738,-343.65136961,0.00017673,2]
[403024285,1769080238747,-500.67754118,0.00017673,2]
[403024286,1769080238757,-502.19021569,0.00017673,2]
[403024287,1769080238767,-500.0,0.00017673,2]
[403024289,1769080238865,-1193.85,0.00017863,2]
[403024290,1769080238875,-500.0,0.00017874,2]
[403024291,1769080238885,-4838.7187,0.00017893,2]
[403024292,1769080238895,-500.0,0.00017992,2]
[403024293,1769080238904,-198.83020825,0.00017992,2]
[403024294,1769080238914,-500.0,0.00017992,2]
[403024295,1769080238923,-500.0,0.00017992,2]
[403024296,1769080238933,-195.0,0.00018102,2]
[403024297,1769080238943,-600.0,0.00018102,2]
[403024298,1769080238952,-166.66,0.00018136,2]
[403024299,1769080238962,-1193.85,0.00018137,2]
[403024300,1769080238971,-1001.67447138,0.00018221,2]
[403024301,1769080238985,-1000.0,0.00018221,2]
[403024302,1769080238996,-854.17894086,0.00018221,2]
[403024303,1769080239006,-501.64580082,0.00018221,2]
[403024304,1769080239026,-1000.0,0.00018221,2]
[403024305,1769080239047,-1000.0,0.00018221,2]
[403024306,1769080239065,-540.54661536,0.00018221,2]
[403024307,1769080239076,-509.50904316,0.00018221,2]
[403024308,1769080239086,-1000.0,0.00018369,2]
[403024309,1769080239099,-1193.85,0.00018411,2]
[403024310,1769080239109,-420.0,0.00018456,2]
[403024311,1769080239118,-250.0,0.00018525,2]
[403024312,1769080239128,-250.0,0.00018525,2]
[403024313,1769080239138,-201.13374682,0.00018525,2]
[403024314,1769080239147,-250.0,0.00018525,2]
[403024315,1769080239156,-1680.0,0.00018548,2]
[403024316,1769080239166,-1193.85,0.00018685,2]
[403024317,1769080239175,-166.66,0.00018715,2]
[403024318,1769080239184,-1500.0,0.00018768,2]
[403024319,1769080239193,-502.17327714,0.00018768,2]
[403024320,1769080239202,-1500.0,0.00018768,2]
[403024321,1769080239211,-3600.0,0.000189,6]
[403024322,1769080239220,-1193.88,0.00018959,2]
[403024323,1769080239230,-200.39976832,0.00019082,2]
[403024324,1769080239239,-191.295,0.00019177,2]
[403024325,1769080239250,-164.101,0.00019177,2]
[403024326,1769080239259,-212.373,0.00019177,2]
[403024327,1769080239268,-250.0,0.00019177,2]
[403024328,1769080239278,-170.0,0.00019177,2]
[403024329,1769080239287,-230.574,0.00019177,2]
[403024330,1769080239298,-615.979,0.00019177,2]
[403024331,1769080239307,-3474.0,0.00019177,2]
[403024332,1769080239319,-1332.0,0.00019177,2]
[403024333,1769080239329,-1407.0,0.00019177,2]
[403024334,1769080239339,-1268.0,0.00019177,2]
[403024335,1769080239348,-276.0,0.00019177,2]
[403024336,1769080239358,-941.776,0.00019177,2]
[403024337,1769080239369,-1203.0,0.00019177,2]
[403024338,1769080239379,-2441.0,0.00019177,2]
[403024339,1769080239392,-4828.0,0.00019177,2]
[403024340,1769080239402,-567.0,0.00019177,2]
[403024341,1769080239411,-166.66,0.00019295,2]
[403024342,1769080239425,-1496.38900777,0.00019316,2]
[403024343,1769080239436,-2000.0,0.00019316,2]
[403024344,1769080239447,-488.78638973,0.00019419,2]
[403024345,1769080239456,-500.0,0.00019419,2]
[403024346,1769080239466,-500.0,0.00019419,2]
[403024347,1769080239476,-500.0,0.00019419,2]
[403024348,1769080239486,-823.77908852,0.00019419,2]
[403024349,1769080239497,-9000.0,0.00019419,2]
[403024350,1769080239506,-172.38117246,0.00019419,2]
[403024351,1769080239516,-250.0,0.00019419,2]
[403024352,1769080239525,-250.0,0.00019419,2]
[403024353,1769080239534,-250.0,0.00019419,2]
[403024354,1769080239543,-6327.94060004,0.00019419,2]
[403024355,1769080239552,-250.0,0.00019419,2]
[403024356,1769080239562,-250.0,0.00019419,2]
[403024357,1769080239571,-276.40674304,0.00019419,2]
[403024358,1769080239581,-174.61919141,0.00019419,2]
[403024359,1769080239591,-151.0,0.00019419,2]
[403024360,1769080239600,-151.0,0.00019419,2]
[403024361,1769080239609,-322.6107,0.00019419,2]
[403024362,1769080239619,-151.0,0.00019419,2]
[403024363,1769080239628,-151.0,0.00019419,2]
[403024364,1769080239637,-151.0,0.00019419,2]
[403024365,1769080239646,-151.0,0.00019419,2]
[403024366,1769080239655,-151.0,0.00019419,2]
[403024367,1769080239665,-151.0,0.00019419,2]
[403024368,1769080239675,-151.0,0.00019419,2]
[403024369,1769080239685,-151.0,0.00019419,2]
[403024370,1769080239695,-151.0,0.00019419,2]
[403024371,1769080239705,-151.0,0.00019419,2]
[403024372,1769080239715,-9000.0,0.00019474,2]
[403024373,1769080239725,-9000.0,0.00019529,2]
[403024374,1769080239734,-9000.0,0.00019584,2]
[403024375,1769080239743,-506.0,0.000196,2]
[403024376,1769080239752,-9207.94484483,0.00019615,2]
[403024377,1769080239762,-3179.8,0.00019822,2]
[403024378,1769080239774,-1005.2389488,0.00019864,2]
[403024379,1769080239784,-166.66,0.00019874,2]
[403024380,1769080239793,-604.60838265,0.00019967,2]
[403024381,1769080239802,-150.0,0.0002,2]
[403024382,1769080239811,-238.3048284,0.0002,2]
[403024383,1769080239821,-1822.72110573,0.00020043,2]
[403024384,1769080239831,-507.88632423,0.00020126,7]
[403024385,1769080239847,-587.0,0.0002016,2]
[403024386,1769080239856,-2351.0,0.00020361,2]
[403024387,1769080239865,-166.66,0.00020454,2]
[403024388,1769080239874,-1000.0,0.00020665,2]
[403024389,1769080239883,-503.44696293,0.00020675,2]
[403024390,1769080239893,-150.0,0.000207,7]
[403024391,1769080239904,-202.55257861,0.00020901,2]
[403024392,1769080239914,-222.99,0.00020951,2]
[403024393,1769080239923,-2036.91,0.00020951,2]
[403024394,1769080239933,-449.92,0.00021088,2]
[403024395,1769080239942,-486.29,0.00021285,2]
[403024396,1769080239951,-449.92,0.00021362,2]
[403024397,1769080239960,-364.96851401,0.00021368,2]
[403024398,1769080239970,-486.29,0.00021559,2]
[403024399,1769080239980,-921.0,0.000216,2]
[403024400,1769080239989,-913.0,0.000216,2]
[403024401,1769080239999,-981.0,0.000216,2]
[403024402,1769080240008,-449.92,0.00021636,2]
[403024403,1769080240018,-250.0,0.00021744,2]
[403024404,1769080240028,-486.29,0.00021833,2]
[403024405,1769080240038,-449.94,0.0002191,2]
[403024406,1769080240047,-500.0,0.00021918,2]
[403024407,1769080240057,-249.98949767,0.00021918,2]
[403024408,1769080240067,-3179.8,0.0002193,2]
[403024409,1769080240076,-500.0,0.00021973,2]
[403024410,1769080240085,-500.0,0.00022,7]
[403024411,1769080240097,-539.95,0.00022,7]
[403024412,1769080240107,-823.0,0.00022022,2]
[403024413,1769080240116,-500.0,0.00022028,2]
[403024414,1769080240126,-500.0,0.00022082,2]
[403024415,1769080240135,-486.29,0.00022107,2]
[403024416,1769080240145,-548.00364651,0.00022137,2]
[403024417,1769080240155,-1926.4181119,0.00022167,2]
[403024418,1769080240168,-151.3,0.00022167,2]
[403024419,1769080240177,-150.0,0.00022177,2]
[403024420,1769080240186,-615.0,0.00022177,2]
[403024421,1769080240196,-3474.0,0.00022177,2]
[403024422,1769080240205,-1332.0,0.00022177,2]
[403024423,1769080240214,-1407.0,0.00022177,2]
[403024424,1769080240223,-1268.0,0.00022177,2]
[403024425,1769080240232,-276.0,0.00022177,2]
[403024426,1769080240242,-915.0,0.00022177,2]
[403024427,1769080240251,-1203.0,0.00022177,2]
[403024428,1769080240261,-2441.0,0.00022177,2]
[403024429,1769080240271,-4828.0,0.00022177,2]
[403024430,1769080240282,-567.0,0.00022177,2]
[403024431,1769080240292,-9207.94484483,0.00022287,2]
[403024432,1769080240301,-3292.0,0.00022352,2]
[403024434,1769080240311,-342.63,0.00022381,2]
[403024435,1769080240321,-4249.0,0.00022503,2]
[403024437,1769080240331,-168.0,0.00022881,2]
[403024438,1769080240341,-506.0,0.00022956,5]
[403024439,1769080240351,-1000.0,0.00022961,2]
[403024440,1769080240360,-241.0,0.00022983,2]
[403024441,1769080240370,-168.0,0.00023277,2]
[403024442,1769080240379,-241.0,0.00023281,2]
[403024443,1769080240388,-168.0,0.00023361,2]
[403024444,1769080240398,-168.0,0.00023494,2]
[403024445,1769080240407,-168.0,0.00023564,2]
[403024446,1769080240418,-241.0,0.00023807,2]
[403024447,1769080240429,-168.0,0.0002388,2]
[403024448,1769080240439,-241.0,0.00023994,2]
[403024449,1769080240449,-3179.8,0.00024039,2]
[403024450,1769080240459,-979.0,0.00024055,2]
[403024451,1769080240469,-241.0,0.00024078,2]
[403024452,1769080240480,-205.71,0.00024113,2]
[403024453,1769080240489,-1340.3200452,0.00024126,7]
[403024454,1769080240500,-1247.68,0.00024174,2]
[403024455,1769080240509,-2106.75,0.00024174,2]
[403024456,1769080240518,-241.0,0.00024175,2]
[403024457,1769080240527,-168.0,0.00024267,2]
[403024458,1769080240536,-241.0,0.00024327,2]
[403024459,1769080240545,-168.0,0.0002443,2]
[403024460,1769080240554,-241.0,0.00024516,2]
[403024461,1769080240566,-4609.0,0.00024537,2]
[403024462,1769080240575,-241.0,0.00024589,2]
[403024463,1769080240584,-374.93,0.00024658,2]
[403024464,1769080240594,-1000.0,0.00024658,2]
[403024465,1769080240603,-150.0,0.00024658,2]
[403024466,1769080240612,-168.0,0.00024693,2]
[403024467,1769080240622,-241.0,0.00024713,2]
[403024468,1769080240631,-168.0,0.00024737,2]
[403024469,1769080240640,-241.0,0.00024761,2]
[403024470,1769080240649,-241.0,0.0002479,2]
[403024471,1769080240658,-168.0,0.00024796,2]
[403024472,1769080240667,-200.0,0.00024826,2]
[403024473,1769080240676,-202.55257861,0.0002486,2]
[403024474,1769080240686,-500.0,0.00024873,2]
[403024475,1769080240695,-150.0,0.00024873,2]
[403024476,1769080240705,-500.0,0.00024873,2]
[403024477,1769080240714,-500.0,0.00024873,2]
[403024478,1769080240723,-573.0106482,0.00024873,2]
[403024479,1769080240733,-243.91713323,0.00024873,2]
[403024480,1769080240742,-507.70713806,0.00024873,2]
[403024481,1769080240751,-504.31498541,0.00024873,2]
[403024482,1769080240760,-500.0,0.00024873,2]
[403024483,1769080240769,-562.63678791,0.00024873,2]
[403024484,1769080240778,-500.0,0.00024873,2]
[403024485,1769080240787,-165.63676195,0.00024873,2]
[403024486,1769080240796,-500.0,0.00024873,2]
[403024487,1769080240806,-503.20837636,0.00024873,2]
[403024488,1769080240815,-501.55766081,0.00024873,2]
[403024489,1769080240824,-503.12079834,0.00024873,2]
[403024490,1769080240833,-500.0,0.00024873,2]
[403024491,1769080240842,-500.0,0.00024873,2]
[403024492,1769080240851,-504.23481596,0.00024873,2]
[403024493,1769080240860,-500.0,0.00024873,2]
[403024494,1769080240869,-151.3,0.0002488,2]
[403024495,1769080240879,-151.3,0.0002489,2]
[403024496,1769080240888,-151.3,0.0002489,2]
[403024497,1769080240897,-151.3,0.0002489,2]
[403024498,1769080240907,-43354.97053025,0.0002489,2]
[403024499,1769080240915,-332814.882151,0.000249,2]
[403024500,1769080240924,-9207.94484483,0.0002496,2]
[403024501,1769080240933,-6525.78200297,0.00024963,2]
[403024502,1769080240942,-500.0,0.00024968,7]
[403024503,1769080240951,-500.0,0.00024968,7]
[403024504,1769080240960,-241.0,0.00024987,2]
[403024505,1769080240970,-241.0,0.00025106,2]
[403024506,1769080240979,-6525.78200297,0.00025167,2]
[403024507,1769080240988,-615.0,0.00025177,2]
[403024508,1769080240997,-3474.0,0.00025177,2]
[403024509,1769080241007,-1332.0,0.00025177,2]
[403024510,1769080241016,-1407.0,0.00025177,2]
[403024511,1769080241026,-276.0,0.00025177,2]
[403024512,1769080241035,-915.0,0.00025177,2]
[403024513,1769080241044,-1203.0,0.00025177,2]
[403024514,1769080241053,-2441.0,0.00025177,2]
[403024515,1769080241062,-4828.0,0.00025177,2]
[403024516,1769080241072,-565.42,0.00025177,2]
[403024517,1769080241081,-656.35219057,0.00025189,2]
[403024518,1769080241091,-1000.0,0.00025257,2]
[403024519,1769080241100,-151.3,0.000254,2]
[403024520,1769080241110,-6525.78200297,0.00025411,2]
[403024521,1769080241119,-1000.0,0.00025421,2]
[403024522,1769080241128,-1000.0,0.00025421,2]
[403024523,1769080241137,-1000.0,0.00025421,2]
[403024524,1769080241147,-236.97822393,0.00025421,2]
[403024525,1769080241156,-1000.0,0.00025421,2]
[403024526,1769080241165,-503.53038109,0.00025421,2]
[403024527,1769080241174,-1000.0,0.00025421,2]
[403024528,1769080241183,-505.86456098,0.00025421,2]
[403024529,1769080241192,-1000.0,0.00025421,2]
[403024530,1769080241202,-1000.0,0.00025421,2]
[403024531,1769080241211,-497.6192211,0.00025443,2]
[403024532,1769080241220,-19577.3460089,0.00025523,2]
[403024533,1769080241229,-19577.3460089,0.00025533,2]
[403024534,1769080241239,-151.3,0.00025533,2]
[403024535,1769080241248,-151.3,0.00025533,2]
[403024536,1769080241258,-151.3,0.00025533,2]
[403024537,1769080241267,-151.3,0.00025533,2]
[403024538,1769080241276,-151.3,0.00025533,2]
[403024539,1769080241285,-151.3,0.00025533,2]
[403024540,1769080241295,-151.3,0.00025533,2]
[403024541,1769080241304,-249.22843217,0.00025542,2]
[403024542,1769080241322,-150.0,0.00025542,2]
[403024543,1769080241333,-300.0,0.00025542,10]
[403024544,1769080241345,-205394.7630954,0.00025543,2]
[403024545,1769080241355,-26758.606216,0.00025543,2]
[403024546,1769080241366,-388330.1809826,0.00025543,2]
[403024547,1769080241375,-151.0,0.00025543,7]
[403024548,1769080241385,-151.0,0.00025543,7]
[403024549,1769080241394,-34625.9817975,0.00025543,2]
[403024550,1769080241403,-2504.1974949,0.00025543,2]
[403024551,1769080241414,-459.161951,0.00025543,7]
[403024552,1769080241429,-459.161951,0.00025543,7]
[403024553,1769080241439,-459.161951,0.00025543,7]
[403024554,1769080241449,-459.161951,0.00025543,7]
[403024555,1769080241459,-223.85595231,0.00025692,2]
[403024556,1769080241470,-150.0,0.00025705,2]
[403024557,1769080241479,-364.96851401,0.00025738,2]
[403024558,1769080241489,-200.0,0.0002576,2]
[403024559,1769080241499,-1000.0,0.00025767,2]
[403024560,1769080241509,-258.73,0.00025803,2]
[403024561,1769080241519,-150.0,0.000259,2]
[403024562,1769080241528,-5400.0,0.000259,9]
[403024563,1769080241539,-373.72,0.0002593,2]
[403024564,1769080241548,-307.12,0.00025932,2]
[403024565,1769080241558,-200.0,0.00025968,2]
[403024566,1769080241567,-151.0,0.00025968,3]
[403024567,1769080241577,-151.0,0.00025968,3]
[403024568,1769080241586,-151.0,0.00025968,3]
[403024569,1769080241599,-151.0,0.00025968,3]
[403024570,1769080241608,-151.0,0.00025968,3]
[403024571,1769080241618,-154.0,0.00025968,3]
[403024572,1769080241627,-151.0,0.00025968,3]
[403024573,1769080241637,-154.0,0.00025968,3]
[403024574,1769080241647,-151.0,0.00025968,3]
[403024575,1769080241656,-154.0,0.00025968,3]
[403024576,1769080241665,-151.0,0.00025968,3]
[403024577,1769080241675,-154.0,0.00025968,3]
[403024578,1769080241684,-151.0,0.00025968,3]
[403024579,1769080241694,-154.0,0.00025968,3]
[403024580,1769080241703,-151.0,0.00025968,3]
[403024581,1769080241713,-151.0,0.00025968,3]
[403024582,1769080241722,-154.0,0.00025968,3]
[403024583,1769080241732,-151.0,0.00025968,3]
[403024584,1769080241742,-154.0,0.00025968,3]
[403024585,1769080241752,-151.0,0.00025968,3]
[403024586,1769080241762,-154.0,0.00025968,3]
[403024587,1769080241771,-151.0,0.00025968,3]
[403024588,1769080241780,-154.0,0.00025968,3]
[403024589,1769080241790,-151.0,0.00025968,3]
[403024590,1769080241799,-154.0,0.00025968,3]
[403024591,1769080241809,-151.0,0.00025968,3]
[403024592,1769080241820,-154.0,0.00025968,3]
[403024593,1769080241830,-151.0,0.00025968,3]
[403024594,1769080241840,-151.0,0.00025968,3]
[403024595,1769080241850,-151.0,0.00025968,3]
[403024596,1769080241859,-151.0,0.00025968,3]
[403024597,1769080241869,-151.0,0.00025968,3]
[403024598,1769080241880,-151.0,0.00025968,3]
[403024599,1769080241890,-151.0,0.00025968,3]
[403024600,1769080241900,-151.0,0.00025968,3]
[403024601,1769080241910,-151.0,0.00025968,3]
[403024602,1769080241920,-151.0,0.00025968,3]
[403024603,1769080241929,-151.0,0.00025968,3]
[403024604,1769080241939,-151.0,0.00025968,3]
[403024605,1769080241949,-151.0,0.00025968,3]
[403024606,1769080241959,-151.0,0.00025968,3]
[403024607,1769080241968,-151.0,0.00025968,3]
[403024608,1769080241979,-151.0,0.00025968,3]
[403024609,1769080241989,-164.13147686,0.00025968,3]
[403024610,1769080241998,-1265.0,0.00025968,3]
[403024611,1769080242007,-1265.0,0.00025968,3]
[403024612,1769080242016,-1265.0,0.00025968,3]
[403024613,1769080242026,-1265.0,0.00025968,3]
[403024614,1769080242036,-1265.0,0.00025968,3]
[403024615,1769080242046,-1265.0,0.00025968,3]
[403024616,1769080242055,-1265.0,0.00025968,3]
[403024617,1769080242065,-253.08537508,0.00025968,2]
[403024618,1769080242075,-200.0,0.00025968,2]
[403024619,1769080242084,-151.0,0.00025968,2]
[403024620,1769080242094,-1959.10659,0.00025968,2]
[403024621,1769080242103,-800.0345526,0.00025968,2]
[403024622,1769080242113,-504.05764354,0.00025968,2]
[403024623,1769080242123,-325.63581608,0.00025968,2]
[403024624,1769080242133,-171.1048523,0.00025968,2]
[403024625,1769080242143,-474.80752274,0.00025968,2]
[403024626,1769080242152,-1500.0,0.00025968,2]
[403024627,1769080242163,-1500.0,0.00025968,2]
[403024628,1769080242174,-233.57,0.00025985,2]
[403024629,1769080242183,-216.13676815,0.00026,2]
[403024630,1769080242194,-166.52525506,0.00026,2]
[403024631,1769080242203,-200.0,0.00026062,2]
[403024632,1769080242212,-2364.48343294,0.00026126,14]
[403024633,1769080242223,-3179.8,0.00026147,2]
[403024634,1769080242238,-1959.1066,0.00026168,2]
[403024635,1769080242249,-200.0,0.00026228,2]
[403024636,1769080242260,-200.0,0.00026228,2]
[403024637,1769080242269,-151.3,0.0002629,2]
[403024638,1769080242279,-29729.16767647,0.000263,7]
[403024639,1769080242289,-506.0,0.00026311,8]
[403024640,1769080242299,-1959.1066,0.00026368,2]
[403024641,1769080242309,-27429.93578407,0.000264,2]
[403024642,1769080242318,-162.73600609,0.00026429,2]
[403024643,1769080242328,-200.0,0.0002649,2]
[403024644,1769080242338,-1128.71369645,0.00026516,2]
[403024645,1769080242348,-2000.0,0.00026516,2]
[403024646,1769080242357,-1959.10659,0.00026568,2]
[403024647,1769080242366,-1000.0,0.00026575,2]
[403024648,1769080242377,-1101.0,0.00026661,2]
[403024649,1769080242387,-200.0,0.00026755,2]
[403024650,1769080242397,-1959.1066,0.00026768,2]
[403024651,1769080242406,-1000.0,0.00026849,2]
[403024652,1769080242416,-259.8,0.000269,2]
[403024653,1769080242428,-4396.0,0.00026936,2]
[403024654,1769080242438,-1959.1066,0.00026968,2]
[403024655,1769080242447,-250.0,0.00027,2]
[403024656,1769080242458,-1032.4381348,0.00027,2]
[403024657,1769080242468,-530.0,0.00027,2]
[403024658,1769080242478,-3086.897308,0.00027,2]
[403024659,1769080242487,-200.0,0.00027022,2]
[403024660,1769080242498,-2305.95009848,0.00027064,2]
[403024661,1769080242507,-1000.0,0.00027123,2]
[403024662,1769080242516,-3680.88,0.00027123,2]
[403024663,1769080242526,-150.0,0.00027123,2]
[403024664,1769080242535,-568.28846446,0.00027183,2]
[403024665,1769080242545,-151.3,0.00027271,2]
[403024666,1769080242555,-10000.0,0.00027281,2]
[403024667,1769080242565,-150.0,0.00027369,2]
[403024668,1769080242574,-162.5088962,0.0002737,2]
[403024669,1769080242584,-163.62,0.0002737,2]
[403024670,1769080242594,-4103.62342215,0.0002739,2]
[403024671,1769080242603,-8105.72507762,0.0002739,2]
[403024672,1769080242613,-2567.0,0.00027397,2]
[403024673,1769080242622,-520.13035104,0.00027397,2]
[403024674,1769080242632,-1000.0,0.00027397,2]
[403024675,1769080242641,-431.0,0.00027397,7]
[403024676,1769080242651,-39838.15,0.00027397,2]
[403024677,1769080242660,-518.45,0.00027397,2]
[403024678,1769080242670,-1444.97,0.00027397,2]
[403024679,1769080242679,-300.0,0.00027397,2]
[403024680,1769080242689,-374.93,0.00027397,2]
[403024681,1769080242698,-500.0,0.00027397,30]
[403024682,1769080242708,-410.706446,0.00027397,7]
[403024683,1769080242717,-410.706446,0.00027397,7]
[403024685,1769080242727,-410.706446,0.00027397,7]
[403024686,1769080242736,-410.706446,0.00027397,7]
[403024687,1769080242746,-200.8023968,0.000275,2]
[403024688,1769080242755,-548.54648125,0.000275,2]
[403024689,1769080242764,-1000.0,0.00027553,2]
[403024690,1769080242774,-9207.94484483,0.00027632,2]
[403024691,1769080242783,-1000.0,0.00027671,2]
[403024692,1769080242792,-2000.0,0.000279,2]
[403024693,1769080242801,-1000.0,0.00027945,2]
[403024694,1769080242811,-151.3,0.0002799,2]
[403024695,1769080242820,-24253.20834869,0.00028,2]
[403024696,1769080242830,-160.0,0.00028,2]
[403024697,1769080242839,-183.385,0.00028,13]
[403024698,1769080242849,-1101.0,0.00028064,5]
[403024699,1769080242858,-615.0,0.00028177,2]
[403024700,1769080242867,-3474.0,0.00028177,2]
[403024701,1769080242876,-1332.0,0.00028177,2]
[403024702,1769080242886,-1407.0,0.00028177,2]
[403024703,1769080242896,-276.0,0.00028177,2]
[403024704,1769080242905,-915.0,0.00028177,2]
[403024705,1769080242915,-1199.0,0.00028177,2]
[403024706,1769080242925,-1349.124,0.00028177,2]
[403024707,1769080242935,-4828.0,0.00028177,2]
[403024708,1769080242945,-1999.0,0.00028219,2]
[403024709,1769080242954,-3179.8,0.00028255,2]
[403024710,1769080242963,-1000.0,0.00028493,2]
[403024711,1769080242973,-497.61922107,0.00028734,2]
[403024712,1769080243190,-212.59791014,0.00028767,2]
[403024713,1769080243200,-1000.0,0.00028767,2]
[403024714,1769080243209,-45829.7663831,0.00028778,2]
[403024715,1769080243218,-86648.1754731,0.00028778,2]
[403024716,1769080243227,-7726.1008637,0.00028778,2]
[403024717,1769080243236,-5970.6520903,0.00028778,2]
[403024718,1769080243245,-116275.57,0.000288,2]
[403024719,1769080243254,-459.161951,0.000288,7]
[403024720,1769080243263,-459.161951,0.000288,7]
[403024721,1769080243272,-459.161951,0.000288,7]
[403024722,1769080243281,-459.161951,0.000288,7]
[403024723,1769080243290,-1000.0,0.00029041,2]
[403024724,1769080243299,-1000.0,0.00029315,2]
[403024725,1769080243310,-10226.0031126,0.000295,2]
[403024726,1769080243322,-19333.8212698,0.000295,2]
[403024727,1769080243332,-1723.926123,0.000295,2]
[403024728,1769080243341,-1332.2325571,0.000295,2]